[Event "MČR juniorů a juniorek v rapid šachu 2023"]
[Site "Czech Republic"]
[Date "2023.09.23"]
[Round "6.16"]
[White "Novotny, Dominik"]
[Black "Merinsky, Vaclav"]
[Result "1-0"]
[TimeControl "20 min + 5 sec per move"]
[WhiteFideId "23755601"]
[BlackFideId "390062"]
[WhiteElo "1707"]
[BlackElo "1869"]

1. e4 {[%clk 00:20:08]} {[%emt 00:00:02]} e5 {[%clk 00:20:09]} {[%emt
00:00:02]} 2. Nc3 {[%clk 00:20:11]} Nf6 {[%clk 00:20:08]} {[%emt 00:00:06]} 3.
f4 {[%clk 00:20:14]} {[%emt 00:00:02]} d6 {[%clk 00:19:36]} {[%emt 00:00:37]} 4.
Nf3 {[%clk 00:20:17]} {[%emt 00:00:02]} Nc6 {[%clk 00:19:29]} {[%emt 00:00:12]}
5. Bb5 {[%clk 00:20:19]} {[%emt 00:00:03]} exf4 {[%clk 00:19:21]} {[%emt
00:00:13]} 6. d4 {[%clk 00:19:01]} {[%emt 00:01:24]} Bd7 {[%clk 00:19:09]}
{[%emt 00:00:17]} 7. Bxf4 {[%clk 00:18:48]} {[%emt 00:00:18]} a6 {[%clk
00:18:56]} {[%emt 00:00:18]} 8. Bc4 {[%clk 00:18:32]} {[%emt 00:00:21]} b5
{[%clk 00:17:22]} {[%emt 00:01:40]} 9. Bb3 {[%clk 00:17:54]} {[%emt 00:00:43]}
b4 {[%clk 00:15:54]} {[%emt 00:01:33]} 10. Nd5 {[%clk 00:17:32]} {[%emt
00:00:26]} Nxe4 {[%clk 00:15:24]} {[%emt 00:00:36]} 11. Qe2 {[%clk 00:16:52]}
{[%emt 00:00:44]} Bf5 {[%clk 00:13:51]} {[%emt 00:01:38]} 12. Ng5 {[%clk
00:12:52]} {[%emt 00:04:06]} Nxd4 {[%clk 00:09:13]} {[%emt 00:04:42]} 13. Qe3
{[%clk 00:12:45]} {[%emt 00:00:12]} Nxb3 {[%clk 00:07:46]} {[%emt 00:01:33]} 14.
Nxe4 {[%clk 00:09:41]} {[%emt 00:03:08]} Nxa1 {[%clk 00:07:29]} {[%emt
00:00:22]} 15. Nef6# {[%emt 00:00:07]} 1-0

[Event "MČR juniorů a juniorek v rapid šachu 2023"]
[Site "Czech Republic"]
[Date "2023.09.23"]
[Round "6.17"]
[White "Zadrapova, Amalie"]
[Black "Pavlis, Matej"]
[Result "1-0"]
[TimeControl "20 min + 5 sec per move"]
[WhiteFideId "23710276"]
[BlackFideId "23735767"]
[WhiteElo "1590"]
[BlackElo "1771"]

1. e4 {[%clk 00:20:08]} {[%emt 00:00:01]} c6 {[%clk 00:20:07]} {[%emt
00:00:04]} 2. d4 {[%clk 00:20:11]} {[%emt 00:00:01]} d5 {[%clk 00:20:11]}
{[%emt 00:00:01]} 3. exd5 {[%clk 00:20:13]} {[%emt 00:00:03]} cxd5 {[%clk
00:20:15]} 4. c4 {[%clk 00:20:17]} {[%emt 00:00:01]} Nf6 {[%clk 00:20:16]}
{[%emt 00:00:05]} 5. Nc3 {[%clk 00:20:12]} {[%emt 00:00:10]} Nc6 {[%clk
00:20:14]} {[%emt 00:00:06]} 6. cxd5 {[%clk 00:19:41]} {[%emt 00:00:36]} Nxd5
{[%clk 00:20:18]} {[%emt 00:00:02]} 7. h3 {[%clk 00:19:06]} {[%emt 00:00:40]}
g6 {[%clk 00:20:18]} {[%emt 00:00:05]} 8. Nf3 {[%clk 00:18:44]} {[%emt
00:00:27]} Bg7 {[%clk 00:20:22]} {[%emt 00:00:01]} 9. Bb5 {[%clk 00:18:28]}
{[%emt 00:00:20]} O-O {[%clk 00:20:21]} {[%emt 00:00:05]} 10. O-O {[%clk
00:18:06]} {[%emt 00:00:28]} Be6 {[%clk 00:18:58]} {[%emt 00:01:28]} 11. Na4
{[%clk 00:15:48]} {[%emt 00:02:24]} Nc7 {[%clk 00:14:22]} {[%emt 00:04:41]} 12.
Bxc6 {[%clk 00:15:04]} {[%emt 00:00:49]} bxc6 {[%clk 00:14:25]} {[%emt
00:00:02]} 13. Ne5 {[%clk 00:14:17]} {[%emt 00:00:52]} Bd5 {[%clk 00:12:46]}
{[%emt 00:01:45]} 14. Be3 {[%clk 00:13:02]} {[%emt 00:01:20]} Ne6 {[%clk
00:12:29]} {[%emt 00:00:21]} 15. Rc1 {[%clk 00:11:21]} {[%emt 00:01:46]} Rc8
{[%clk 00:12:11]} {[%emt 00:00:22]} 16. b3 {[%clk 00:09:06]} {[%emt 00:02:21]}
Qd6 {[%clk 00:10:34]} {[%emt 00:01:43]} 17. f4 {[%clk 00:07:34]} {[%emt
00:01:36]} f5 {[%clk 00:08:56]} {[%emt 00:01:43]} 18. Nc5 {[%clk 00:06:41]}
{[%emt 00:00:58]} Nxc5 {[%clk 00:07:32]} {[%emt 00:01:29]} 19. Rxc5 {[%clk
00:04:42]} {[%emt 00:02:05]} Rfd8 {[%clk 00:06:30]} {[%emt 00:01:06]} 20. Qd2
{[%clk 00:04:19]} {[%emt 00:00:28]} e6 {[%clk 00:06:01]} {[%emt 00:00:34]} 21.
Rfc1 {[%clk 00:04:00]} {[%emt 00:00:25]} Bf8 {[%clk 00:05:39]} {[%emt
00:00:26]} 22. Ra5 {[%clk 00:02:17]} {[%emt 00:01:48]} Qb8 {[%clk 00:03:40]}
{[%emt 00:02:04]} 23. Ra4 {[%clk 00:01:58]} {[%emt 00:00:24]} c5 {[%clk
00:03:23]} {[%emt 00:00:22]} 24. Qb2 {[%clk 00:00:52]} {[%emt 00:01:12]} cxd4
{[%clk 00:02:12]} {[%emt 00:01:17]} 25. Bxd4 {[%clk 00:00:38]} {[%emt
00:00:18]} Rxc1+ {[%clk 00:02:11]} {[%emt 00:00:06]} 26. Qxc1 {[%clk 00:00:42]}
Rc8 {[%clk 00:02:15]} 27. Qd2 {[%clk 00:00:32]} {[%emt 00:00:15]} Qc7 {[%clk
00:01:12]} {[%emt 00:01:09]} 28. Rxa7 {[%clk 00:00:26]} {[%emt 00:00:10]} Qc1+
{[%clk 00:01:16]} 29. Qxc1 {[%clk 00:00:29]} {[%emt 00:00:02]} Rxc1+ {[%clk
00:01:21]} 30. Kf2 {[%clk 00:00:20]} {[%emt 00:00:15]} Rc2+ {[%clk 00:01:22]}
{[%emt 00:00:04]} 31. Ke3 {[%clk 00:00:21]} {[%emt 00:00:04]} Rxg2 {[%clk
00:01:21]} {[%emt 00:00:05]} 32. Nd7 {[%clk 00:00:14]} {[%emt 00:00:13]} Rg3+
{[%clk 00:00:17]} {[%emt 00:01:09]} 33. Kf2 {[%clk 00:00:17]} {[%emt 00:00:02]}
Rf3+ {[%clk 00:00:21]} 34. Ke2 {[%clk 00:00:19]} {[%emt 00:00:03]} Bg7 {[%clk
00:00:17]} {[%emt 00:00:08]} 35. Bxg7 {[%clk 00:00:21]} {[%emt 00:00:03]} Kxg7
{[%clk 00:00:22]} 36. Nb6+ {[%clk 00:00:24]} {[%emt 00:00:02]} Kh6 {[%clk
00:00:23]} {[%emt 00:00:03]} 37. Nxd5 exd5 {[%clk 00:00:28]} 38. Kxf3 {[%clk
00:00:31]} {[%emt 00:00:02]} 1-0

[Event "MČR juniorů a juniorek v rapid šachu 2023"]
[Site "Czech Republic"]
[Date "2023.09.23"]
[Round "6.18"]
[White "Nagyova, Daniela"]
[Black "Janouskova, Adela"]
[Result "1/2-1/2"]
[TimeControl "20 min + 5 sec per move"]
[WhiteFideId "390070"]
[BlackFideId "23709804"]
[WhiteElo "1762"]
[BlackElo "1442"]

1. e4 {[%clk 00:20:07]} {[%emt 00:00:02]} c5 {[%clk 00:20:09]} {[%emt
00:00:02]} 2. Nf3 {[%clk 00:20:09]} {[%emt 00:00:03]} Nc6 {[%clk 00:20:12]}
{[%emt 00:00:02]} 3. Nc3 {[%clk 00:20:12]} {[%emt 00:00:02]} d6 {[%clk
00:20:04]} {[%emt 00:00:13]} 4. d4 {[%clk 00:19:01]} {[%emt 00:01:15]} cxd4
{[%clk 00:20:06]} {[%emt 00:00:04]} 5. Nxd4 {[%clk 00:19:04]} {[%emt 00:00:01]}
Nf6 {[%clk 00:20:06]} {[%emt 00:00:06]} 6. f4 {[%clk 00:17:41]} {[%emt
00:01:27]} g6 {[%clk 00:19:56]} {[%emt 00:00:15]} 7. h3 {[%clk 00:16:32]}
{[%emt 00:01:14]} Bg7 {[%clk 00:19:55]} {[%emt 00:00:06]} 8. Be3 {[%clk
00:16:32]} {[%emt 00:00:06]} O-O {[%clk 00:19:44]} {[%emt 00:00:16]} 9. Qd2
{[%clk 00:15:49]} {[%emt 00:00:48]} a6 {[%clk 00:18:37]} {[%emt 00:01:12]} 10.
g4 {[%clk 00:14:58]} {[%emt 00:00:56]} Bd7 {[%clk 00:16:23]} {[%emt 00:02:19]}
11. Be2 {[%clk 00:13:58]} {[%emt 00:01:05]} Nxd4 {[%clk 00:15:41]} {[%emt
00:00:46]} 12. Bxd4 {[%clk 00:13:55]} {[%emt 00:00:09]} Bc6 {[%clk 00:15:40]}
{[%emt 00:00:06]} 13. g5 {[%clk 00:12:33]} {[%emt 00:01:26]} Nxe4 {[%clk
00:14:17]} {[%emt 00:01:28]} 14. Nxe4 {[%clk 00:12:32]} {[%emt 00:00:06]} Bxe4
{[%clk 00:14:18]} {[%emt 00:00:04]} 15. Bxg7 {[%clk 00:12:00]} {[%emt
00:00:37]} Bxh1 {[%clk 00:14:01]} {[%emt 00:00:22]} 16. Bxf8 {[%clk 00:11:44]}
{[%emt 00:00:22]} Qxf8 {[%clk 00:13:29]} {[%emt 00:00:37]} 17. O-O-O {[%clk
00:11:38]} {[%emt 00:00:11]} Be4 {[%clk 00:13:02]} {[%emt 00:00:31]} 18. Qe3
{[%clk 00:10:58]} {[%emt 00:00:46]} d5 {[%clk 00:11:37]} {[%emt 00:01:31]} 19.
h4 {[%clk 00:10:44]} {[%emt 00:00:18]} e6 {[%clk 00:11:38]} {[%emt 00:00:03]}
20. h5 {[%clk 00:10:20]} {[%emt 00:00:29]} Rc8 {[%clk 00:11:30]} {[%emt
00:00:14]} 21. Bd3 {[%clk 00:08:56]} {[%emt 00:01:28]} Bxd3 {[%clk 00:11:22]}
{[%emt 00:00:14]} 22. Qxd3 {[%clk 00:08:54]} {[%emt 00:00:07]} Qb4 {[%clk
00:10:30]} {[%emt 00:00:57]} 23. Rf1 {[%clk 00:07:03]} {[%emt 00:01:55]} Qc4
{[%clk 00:10:09]} {[%emt 00:00:27]} 24. Qxc4 {[%clk 00:06:01]} {[%emt
00:01:07]} Rxc4 {[%clk 00:10:12]} {[%emt 00:00:02]} 25. h6 {[%clk 00:05:48]}
{[%emt 00:00:18]} Kf8 {[%clk 00:09:42]} {[%emt 00:00:35]} 26. Rf3 {[%clk
00:05:11]} {[%emt 00:00:41]} Ke7 {[%clk 00:09:18]} {[%emt 00:00:28]} 27. Kd2
{[%clk 00:04:28]} {[%emt 00:00:48]} Kd6 {[%clk 00:08:45]} {[%emt 00:00:39]} 28.
Rb3 {[%clk 00:02:33]} {[%emt 00:02:00]} Kc6 {[%clk 00:07:12]} {[%emt 00:01:38]}
29. Rf3 {[%clk 00:02:32]} {[%emt 00:00:06]} Re4 {[%clk 00:07:12]} {[%emt
00:00:05]} 30. Rc3+ {[%clk 00:02:24]} {[%emt 00:00:13]} Kd7 {[%clk 00:06:04]}
{[%emt 00:01:13]} 31. Rb3 {[%clk 00:02:21]} {[%emt 00:00:08]} Kc7 {[%clk
00:03:26]} {[%emt 00:02:44]} 32. Rc3+ {[%clk 00:02:20]} {[%emt 00:00:05]} Kb8
{[%clk 00:03:22]} {[%emt 00:00:09]} 33. Rf3 {[%clk 00:02:11]} {[%emt 00:00:13]}
b5 {[%clk 00:03:23]} {[%emt 00:00:04]} 34. Ra3 {[%clk 00:01:24]} {[%emt
00:00:52]} Kb7 {[%clk 00:03:15]} {[%emt 00:00:14]} 35. Rf3 {[%clk 00:01:27]}
{[%emt 00:00:02]} Kb6 {[%clk 00:03:15]} {[%emt 00:00:04]} 36. a3 {[%clk
00:01:12]} {[%emt 00:00:21]} Kc5 {[%clk 00:01:50]} {[%emt 00:01:29]} 37. b4+
{[%clk 00:00:42]} {[%emt 00:00:36]} Kd6 {[%clk 00:00:34]} {[%emt 00:01:21]} 38.
Kd3 {[%clk 00:00:19]} {[%emt 00:00:29]} Re1 {[%clk 00:00:24]} {[%emt 00:00:14]}
39. Kd2 {[%clk 00:00:23]} {[%emt 00:00:02]} Re4 {[%clk 00:00:14]} {[%emt
00:00:14]} 40. Kd3 {[%clk 00:00:24]} {[%emt 00:00:03]} Rc4 {[%clk 00:00:12]}
{[%emt 00:00:08]} 41. Kd2 {[%clk 00:00:20]} {[%emt 00:00:09]} Re4 {[%clk
00:00:10]} {[%emt 00:00:07]} 42. Kd3 {[%clk 00:00:24]} {[%emt 00:00:02]} Re1
{[%clk 00:00:08]} {[%emt 00:00:07]} 43. Kd2 {[%clk 00:00:26]} {[%emt 00:00:03]}
Rh1 {[%clk 00:00:11]} {[%emt 00:00:02]} 44. Rc3 {[%clk 00:00:16]} {[%emt
00:00:15]} Rh2+ {[%clk 00:00:11]} {[%emt 00:00:06]} 45. Ke1 {[%clk 00:00:17]}
{[%emt 00:00:03]} Kd7 {[%clk 00:00:15]} {[%emt 00:00:04]} 46. Rf3 {[%clk
00:00:20]} Rh1+ {[%clk 00:00:16]} {[%emt 00:00:04]} 47. Kd2 {[%clk 00:00:24]}
Rh2+ {[%clk 00:00:14]} {[%emt 00:00:07]} 1/2-1/2

[Event "MČR juniorů a juniorek v rapid šachu 2023"]
[Site "Czech Republic"]
[Date "2023.09.23"]
[Round "6.19"]
[White "Stary, Simon"]
[Black "Husa, Daniel"]
[Result "0-1"]
[TimeControl "20 min + 5 sec per move"]
[WhiteFideId "23734353"]
[BlackFideId "393487"]
[WhiteElo "1518"]
[BlackElo "1760"]

1. e4 {[%clk 00:20:09]} c5 {[%clk 00:20:07]} {[%emt 00:00:04]} 2. Nf3 {[%clk
00:20:13]} e6 {[%clk 00:20:11]} 3. d4 {[%clk 00:20:15]} {[%emt 00:00:03]} cxd4
{[%clk 00:20:09]} {[%emt 00:00:07]} 4. Nxd4 {[%clk 00:20:19]} {[%emt 00:00:02]}
Nf6 {[%clk 00:20:13]} 5. Nc3 {[%clk 00:20:08]} {[%emt 00:00:16]} Nc6 {[%clk
00:20:17]} {[%emt 00:00:01]} 6. Bg5 {[%clk 00:19:40]} {[%emt 00:00:33]} Bb4
{[%clk 00:20:19]} {[%emt 00:00:04]} 7. f4 {[%clk 00:17:08]} {[%emt 00:02:36]}
Qa5 {[%clk 00:19:18]} {[%emt 00:01:06]} 8. Qd3 {[%clk 00:15:13]} {[%emt
00:02:00]} Nxe4 {[%clk 00:18:23]} {[%emt 00:01:00]} 9. Nxc6 {[%clk 00:15:10]}
{[%emt 00:00:08]} bxc6 {[%clk 00:17:59]} {[%emt 00:00:29]} 10. Qxe4 {[%clk
00:14:42]} {[%emt 00:00:33]} Bxc3+ {[%clk 00:17:48]} {[%emt 00:00:15]} 11. bxc3
{[%clk 00:14:45]} {[%emt 00:00:02]} Qxc3+ {[%clk 00:17:24]} {[%emt 00:00:30]}
12. Kf2 {[%clk 00:14:48]} {[%emt 00:00:02]} Qxa1 {[%clk 00:16:45]} {[%emt
00:00:44]} 13. Qb4 {[%clk 00:14:08]} {[%emt 00:00:45]} f6 {[%clk 00:16:19]}
{[%emt 00:00:31]} 14. Be2 {[%clk 00:14:06]} {[%emt 00:00:07]} Qxh1 {[%clk
00:13:46]} {[%emt 00:02:38]} 15. Bh5+ {[%clk 00:14:08]} {[%emt 00:00:02]} Kd8
{[%clk 00:13:20]} {[%emt 00:00:32]} 16. Qa5+ {[%clk 00:14:08]} {[%emt
00:00:05]} Ke7 {[%clk 00:13:16]} {[%emt 00:00:10]} 17. Qc5+ {[%clk 00:14:05]}
{[%emt 00:00:07]} d6 {[%clk 00:12:49]} {[%emt 00:00:32]} 18. Qxc6 {[%clk
00:13:47]} {[%emt 00:00:23]} Bd7 {[%clk 00:12:25]} {[%emt 00:00:29]} 19. Qc3
{[%clk 00:13:01]} {[%emt 00:00:51]} Qxh2 {[%clk 00:11:28]} {[%emt 00:01:01]} 20.
Bf3 {[%clk 00:12:11]} {[%emt 00:00:56]} Rac8 {[%clk 00:11:20]} {[%emt
00:00:14]} 21. Qd3 {[%clk 00:11:56]} {[%emt 00:00:20]} fxg5 {[%clk 00:11:08]}
{[%emt 00:00:17]} 0-1

[Event "MČR juniorů a juniorek v rapid šachu 2023"]
[Site "Czech Republic"]
[Date "2023.09.23"]
[Round "6.20"]
[White "Strnadova, Monika"]
[Black "Pejrimovska, Viola Ruby"]
[Result "1-0"]
[TimeControl "20 min + 5 sec per move"]
[WhiteFideId "23701668"]
[BlackFideId "23709529"]
[WhiteElo "1728"]
[BlackElo "1581"]

1. d4 {[%clk 00:20:08]} {[%emt 00:00:01]} Nf6 {[%clk 00:20:08]} {[%emt
00:00:02]} 2. Bf4 {[%clk 00:20:12]} {[%emt 00:00:02]} g6 {[%clk 00:20:04]}
{[%emt 00:00:09]} 3. Nc3 {[%clk 00:20:15]} {[%emt 00:00:01]} d5 {[%clk
00:19:59]} {[%emt 00:00:10]} 4. Qd2 {[%clk 00:20:17]} {[%emt 00:00:04]} Bg7
{[%clk 00:17:08]} {[%emt 00:02:56]} 5. O-O-O {[%clk 00:20:16]} {[%emt
00:00:05]} O-O {[%clk 00:17:11]} {[%emt 00:00:03]} 6. f3 {[%clk 00:20:18]}
{[%emt 00:00:02]} c6 {[%clk 00:14:44]} {[%emt 00:02:32]} 7. Bh6 {[%clk
00:20:18]} {[%emt 00:00:05]} Ne8 {[%clk 00:12:52]} {[%emt 00:01:57]} 8. Bxg7
{[%clk 00:20:19]} {[%emt 00:00:04]} Kxg7 {[%clk 00:12:00]} {[%emt 00:00:57]} 9.
g4 {[%clk 00:20:05]} {[%emt 00:00:19]} Nd6 {[%clk 00:10:44]} {[%emt 00:01:22]}
10. e3 {[%clk 00:18:43]} {[%emt 00:01:27]} b5 {[%clk 00:10:19]} {[%emt
00:00:29]} 11. h4 {[%clk 00:18:36]} {[%emt 00:00:12]} h6 {[%clk 00:10:14]}
{[%emt 00:00:10]} 12. h5 {[%clk 00:18:29]} {[%emt 00:00:12]} g5 {[%clk
00:09:49]} {[%emt 00:00:31]} 13. Be2 {[%clk 00:18:24]} {[%emt 00:00:10]} a5
{[%clk 00:08:12]} {[%emt 00:01:42]} 14. f4 {[%clk 00:18:25]} {[%emt 00:00:03]}
b4 {[%clk 00:06:55]} {[%emt 00:01:22]} 15. Na4 {[%clk 00:18:28]} {[%emt
00:00:03]} Ne4 {[%clk 00:06:57]} {[%emt 00:00:03]} 16. Qe1 {[%clk 00:18:21]}
{[%emt 00:00:12]} Na6 {[%clk 00:05:07]} {[%emt 00:01:56]} 17. fxg5 {[%clk
00:17:57]} {[%emt 00:00:29]} hxg5 {[%clk 00:05:09]} {[%emt 00:00:02]} 18. Bf3
{[%clk 00:17:33]} {[%emt 00:00:29]} Kh6 {[%clk 00:04:33]} {[%emt 00:00:42]} 19.
Bxe4 {[%clk 00:16:55]} {[%emt 00:00:43]} dxe4 {[%clk 00:04:35]} {[%emt
00:00:03]} 20. Qe2 {[%clk 00:16:28]} {[%emt 00:00:32]} Rb8 {[%clk 00:03:23]}
{[%emt 00:01:17]} 21. Qc4 {[%clk 00:15:40]} {[%emt 00:00:52]} Qd5 {[%clk
00:03:04]} {[%emt 00:00:24]} 22. Qxd5 {[%clk 00:14:47]} {[%emt 00:00:59]} cxd5
{[%clk 00:03:07]} {[%emt 00:00:01]} 23. Nc5 {[%clk 00:14:01]} {[%emt 00:00:51]}
Rb6 {[%clk 00:01:55]} {[%emt 00:01:17]} 24. Na4 {[%clk 00:13:38]} {[%emt
00:00:28]} Rc6 {[%clk 00:01:54]} {[%emt 00:00:06]} 25. Nh3 {[%clk 00:13:12]}
{[%emt 00:00:32]} Bxg4 {[%clk 00:01:35]} {[%emt 00:00:23]} 26. Rdg1 {[%clk
00:13:14]} {[%emt 00:00:03]} f5 {[%clk 00:01:36]} {[%emt 00:00:04]} 27. Nf2
{[%clk 00:13:08]} {[%emt 00:00:11]} Bf3 {[%clk 00:01:15]} {[%emt 00:00:26]} 28.
Rh2 {[%clk 00:13:02]} {[%emt 00:00:11]} g4 {[%clk 00:01:03]} {[%emt 00:00:18]}
29. Kd2 {[%clk 00:12:44]} {[%emt 00:00:23]} Rfc8 {[%clk 00:00:46]} {[%emt
00:00:22]} 30. c3 {[%clk 00:12:47]} {[%emt 00:00:03]} Rg8 {[%clk 00:00:19]}
{[%emt 00:00:31]} 31. Rg3 {[%clk 00:12:43]} {[%emt 00:00:09]} Re8 {[%clk
00:00:11]} {[%emt 00:00:13]} 32. Rg1 {[%clk 00:11:11]} {[%emt 00:01:38]} e5
{[%clk 00:00:08]} {[%emt 00:00:09]} 33. dxe5 {[%clk 00:09:48]} {[%emt
00:01:28]} Rxe5 {[%clk 00:00:07]} {[%emt 00:00:06]} 34. Ke1 {[%clk 00:09:33]}
{[%emt 00:00:19]} Re7 {[%clk 00:00:09]} {[%emt 00:00:03]} 35. Kd2 {[%clk
00:09:33]} {[%emt 00:00:05]} Rb7 {[%clk 00:00:11]} {[%emt 00:00:03]} 36. Nd1
{[%clk 00:07:41]} {[%emt 00:01:58]} Bxd1 {[%clk 00:00:11]} {[%emt 00:00:04]} 37.
Rxd1 {[%clk 00:07:35]} {[%emt 00:00:10]} Nc5 {[%clk 00:00:08]} {[%emt
00:00:08]} 38. Nxc5 {[%clk 00:07:13]} {[%emt 00:00:27]} Rxc5 {[%clk 00:00:11]}
{[%emt 00:00:02]} 39. cxb4 {[%clk 00:07:15]} {[%emt 00:00:03]} Rxb4 {[%clk
00:00:12]} {[%emt 00:00:04]} 40. b3 {[%clk 00:07:16]} {[%emt 00:00:05]} a4
{[%clk 00:00:12]} {[%emt 00:00:05]} 41. Rb1 {[%clk 00:06:57]} {[%emt 00:00:23]}
d4 {[%clk 00:00:10]} {[%emt 00:00:08]} 42. exd4 {[%clk 00:06:29]} {[%emt
00:00:32]} Rxd4+ {[%clk 00:00:12]} {[%emt 00:00:03]} 43. Ke1 {[%clk 00:06:20]}
{[%emt 00:00:15]} axb3 {[%clk 00:00:13]} {[%emt 00:00:04]} 44. axb3 {[%clk
00:06:14]} {[%emt 00:00:10]} f4 {[%clk 00:00:08]} {[%emt 00:00:11]} 45. Ra1
{[%clk 00:06:14]} {[%emt 00:00:04]} Rxh5 {[%clk 00:00:07]} {[%emt 00:00:06]} 46.
Ra6+ {[%clk 00:06:17]} {[%emt 00:00:03]} Kg5 {[%clk 00:00:06]} {[%emt
00:00:06]} 47. Ra5+ {[%clk 00:06:20]} {[%emt 00:00:02]} Kg6 {[%clk 00:00:06]}
{[%emt 00:00:05]} 48. Rhxh5 {[%clk 00:06:06]} {[%emt 00:00:18]} g3 {[%clk
00:00:09]} {[%emt 00:00:02]} 49. Rhg5+ {[%clk 00:06:00]} {[%emt 00:00:12]} Kh6
{[%clk 00:00:08]} {[%emt 00:00:06]} 50. Rgd5 {[%clk 00:04:33]} {[%emt
00:01:32]} Rxd5 {[%clk 00:00:00]} {[%emt 00:00:08]} 51. Rxd5 {[%clk 00:04:33]}
{[%emt 00:00:01]} f3 {[%clk 00:00:00]} {[%emt 00:00:02]} 52. Re5 {[%clk
00:04:33]} {[%emt 00:00:18]} 1-0

[Event "MČR juniorů a juniorek v rapid šachu 2023"]
[Site "Czech Republic"]
[Date "2023.09.23"]
[Round "6.21"]
[White "Boff, Vojtech"]
[Black "Housa, Jan"]
[Result "1-0"]
[TimeControl "20 min + 5 sec per move"]
[WhiteFideId "23733969"]
[BlackFideId "23736356"]
[WhiteElo "1632"]
[BlackElo "1439"]

1. d4 {[%clk 00:20:05]} {[%emt 00:00:04]} Nf6 {[%clk 00:20:07]} {[%emt
00:00:04]} 2. c4 {[%clk 00:20:06]} {[%emt 00:00:03]} g6 {[%clk 00:20:10]}
{[%emt 00:00:02]} 3. Nc3 {[%clk 00:20:09]} {[%emt 00:00:03]} d5 {[%clk
00:20:14]} {[%emt 00:00:02]} 4. Bg5 {[%clk 00:20:12]} {[%emt 00:00:02]} Ne4
{[%clk 00:20:17]} {[%emt 00:00:02]} 5. Bf4 {[%clk 00:20:15]} {[%emt 00:00:02]}
Nxc3 {[%clk 00:20:12]} {[%emt 00:00:10]} 6. bxc3 {[%clk 00:20:18]} {[%emt
00:00:02]} dxc4 {[%clk 00:20:15]} {[%emt 00:00:02]} 7. e4 {[%clk 00:20:08]}
{[%emt 00:00:14]} b5 {[%clk 00:20:11]} {[%emt 00:00:09]} 8. a4 {[%clk
00:20:06]} {[%emt 00:00:08]} c6 {[%clk 00:20:15]} 9. Nf3 {[%clk 00:19:54]}
{[%emt 00:00:17]} Bb7 {[%clk 00:20:09]} {[%emt 00:00:11]} 10. Be2 {[%clk
00:19:47]} {[%emt 00:00:12]} a6 {[%clk 00:18:59]} {[%emt 00:01:15]} 11. O-O
{[%clk 00:19:30]} {[%emt 00:00:21]} Bg7 {[%clk 00:18:16]} {[%emt 00:00:49]} 12.
Rb1 {[%clk 00:19:24]} {[%emt 00:00:11]} Qc8 {[%clk 00:17:33]} {[%emt 00:00:48]}
13. Qc2 {[%clk 00:19:01]} {[%emt 00:00:28]} Nd7 {[%clk 00:16:26]} {[%emt
00:01:12]} 14. Qb2 {[%clk 00:18:51]} {[%emt 00:00:15]} Nb6 {[%clk 00:16:22]}
{[%emt 00:00:10]} 15. a5 {[%clk 00:18:41]} {[%emt 00:00:14]} Na4 {[%clk
00:16:18]} {[%emt 00:00:09]} 16. Qc2 {[%clk 00:18:23]} {[%emt 00:00:23]} O-O
{[%clk 00:16:09]} {[%emt 00:00:14]} 17. Ne5 {[%clk 00:16:34]} {[%emt 00:01:55]}
f5 {[%clk 00:12:06]} {[%emt 00:04:07]} 18. exf5 {[%clk 00:16:19]} {[%emt
00:00:19]} Qxf5 {[%clk 00:11:30]} {[%emt 00:00:42]} 19. Qxf5 {[%clk 00:16:10]}
{[%emt 00:00:14]} Rxf5 {[%clk 00:11:32]} {[%emt 00:00:03]} 20. Bg3 {[%clk
00:16:11]} {[%emt 00:00:05]} Nxc3 {[%clk 00:11:25]} {[%emt 00:00:11]} 21. Rb2
{[%clk 00:16:13]} {[%emt 00:00:04]} Rd8 {[%clk 00:10:17]} {[%emt 00:01:12]} 22.
Bxc4+ {[%clk 00:16:13]} {[%emt 00:00:06]} Kf8 {[%clk 00:10:07]} {[%emt
00:00:15]} 23. Be6 {[%clk 00:16:02]} {[%emt 00:00:15]} Bxe5 {[%clk 00:08:37]}
{[%emt 00:01:36]} 24. Bxf5 {[%clk 00:15:01]} {[%emt 00:01:06]} Bxg3 {[%clk
00:08:28]} {[%emt 00:00:13]} 25. fxg3 {[%clk 00:14:49]} {[%emt 00:00:17]} gxf5
{[%clk 00:08:31]} {[%emt 00:00:03]} 26. Rxf5+ {[%clk 00:14:51]} {[%emt
00:00:02]} Ke8 {[%clk 00:07:14]} {[%emt 00:01:23]} 27. Rf4 {[%clk 00:14:07]}
{[%emt 00:00:49]} Nd5 {[%clk 00:06:09]} {[%emt 00:01:09]} 28. Rh4 {[%clk
00:14:10]} {[%emt 00:00:02]} Nf6 {[%clk 00:05:36]} {[%emt 00:00:38]} 29. Re2
{[%clk 00:13:30]} {[%emt 00:00:45]} h5 {[%clk 00:05:04]} {[%emt 00:00:38]} 30.
Rf4 {[%clk 00:13:28]} {[%emt 00:00:07]} Kf7 {[%clk 00:05:03]} {[%emt 00:00:06]}
31. h3 {[%clk 00:13:18]} {[%emt 00:00:15]} Bc8 {[%clk 00:04:46]} {[%emt
00:00:21]} 32. Rc2 {[%clk 00:13:12]} {[%emt 00:00:12]} Rd6 {[%clk 00:04:33]}
{[%emt 00:00:18]} 33. Rc5 {[%clk 00:12:51]} {[%emt 00:00:25]} Kg6 {[%clk
00:03:07]} {[%emt 00:01:32]} 34. Re5 {[%clk 00:12:21]} {[%emt 00:00:35]} e6
{[%clk 00:02:32]} {[%emt 00:00:40]} 35. h4 {[%clk 00:11:56]} {[%emt 00:00:30]}
Ng4 {[%clk 00:02:14]} {[%emt 00:00:23]} 36. Rg5+ {[%clk 00:11:54]} {[%emt
00:00:07]} Kh6 {[%clk 00:02:17]} {[%emt 00:00:02]} 37. Rf8 {[%clk 00:11:52]}
{[%emt 00:00:07]} Nf6 {[%clk 00:01:35]} {[%emt 00:00:47]} 38. Rxf6+ {[%clk
00:11:43]} {[%emt 00:00:14]} Kh7 {[%clk 00:01:39]} {[%emt 00:00:01]} 39. Rf7+
{[%clk 00:11:45]} {[%emt 00:00:03]} Kh8 {[%clk 00:01:36]} {[%emt 00:00:07]} 40.
Rf8+ {[%clk 00:11:49]} {[%emt 00:00:02]} 1-0